[Event "Late-Titled-Tuesday-Blitz-April-30-2024"]
[Site "Chess.com"]
[Date "2024.04.30"]
[Round "7"]
[White "Abund"]
[Black "lupta_robin"]
[Result "0-1"]
[WhiteElo "2759"]
[BlackElo "2608"]
[TimeControl "180+1"]
[EndTime "15:18:45 PDT"]
[Termination "lupta_robin won by resignation"]

1. e4 {[%clk 0:03:00.9]} 1... g6 {[%clk 0:02:59.4]} 2. d4 {[%clk 0:03:01]} 2...
Nf6 {[%clk 0:02:58.7]} 3. e5 {[%clk 0:02:58.2]} 3... Nh5 {[%clk 0:02:58.4]} 4.
Nf3 {[%clk 0:02:47.8]} 4... d6 {[%clk 0:02:58.5]} 5. Bc4 {[%clk 0:02:43.7]} 5...
Nc6 {[%clk 0:02:50.4]} 6. Qe2 {[%clk 0:02:22.7]} 6... d5 {[%clk 0:02:14.6]} 7.
Bb3 {[%clk 0:02:15]} 7... Bg4 {[%clk 0:02:11.5]} 8. c3 {[%clk 0:02:13.3]} 8...
Ng7 {[%clk 0:02:03.7]} 9. Nbd2 {[%clk 0:02:04.5]} 9... Qd7 {[%clk 0:01:47.7]}
10. h3 {[%clk 0:01:45.9]} 10... Bxf3 {[%clk 0:01:45.9]} 11. Nxf3 {[%clk
0:01:46.8]} 11... e6 {[%clk 0:01:41.3]} 12. Bf4 {[%clk 0:01:33.9]} 12... h5
{[%clk 0:01:36.8]} 13. Bc2 {[%clk 0:01:30.5]} 13... h4 {[%clk 0:01:35.7]} 14. g4
{[%clk 0:01:21.3]} 14... hxg3 {[%clk 0:01:25]} 15. fxg3 {[%clk 0:01:22.2]} 15...
Nh5 {[%clk 0:01:20]} 16. Qe3 {[%clk 0:00:59.3]} 16... Nxf4 {[%clk 0:01:05]} 17.
Qxf4 {[%clk 0:00:59.3]} 17... Bh6 {[%clk 0:01:05.2]} 18. Qf6 {[%clk 0:00:55.7]}
18... Rg8 {[%clk 0:01:00.3]} 19. g4 {[%clk 0:00:45.4]} 19... Qe7 {[%clk
0:00:57]} 20. g5 {[%clk 0:00:42]} 20... Qxf6 {[%clk 0:00:57.2]} 21. exf6 {[%clk
0:00:41.8]} 21... Bf8 {[%clk 0:00:57.8]} 22. h4 {[%clk 0:00:36.5]} 22... Rh8
{[%clk 0:00:37.7]} 23. Ba4 {[%clk 0:00:32.9]} 23... Bd6 {[%clk 0:00:36.7]} 24.
Kf2 {[%clk 0:00:29.7]} 24... Kd7 {[%clk 0:00:36.4]} 25. Rh3 {[%clk 0:00:27.5]}
25... a6 {[%clk 0:00:36.1]} 26. Rah1 {[%clk 0:00:23.3]} 26... Rh5 {[%clk
0:00:30.2]} 27. Bd1 {[%clk 0:00:21.3]} 27... Rah8 {[%clk 0:00:30]} 28. Ne5+
{[%clk 0:00:17.4]} 28... Nxe5 {[%clk 0:00:28.5]} 29. Bxh5 {[%clk 0:00:12.4]}
29... Rxh5 {[%clk 0:00:29.2]} 30. dxe5 {[%clk 0:00:12.8]} 30... Bxe5 {[%clk
0:00:30.1]} 31. Kf3 {[%clk 0:00:12.8]} 31... Bd6 {[%clk 0:00:27.3]} 32. Kg4
{[%clk 0:00:12.9]} 32... c5 {[%clk 0:00:24.2]} 33. Rd1 {[%clk 0:00:12.9]} 33...
b5 {[%clk 0:00:23.1]} 34. Rhd3 {[%clk 0:00:11.9]} 34... Kc6 {[%clk 0:00:23.1]}
35. Re3 {[%clk 0:00:11.8]} 35... a5 {[%clk 0:00:21.4]} 36. Red3 {[%clk
0:00:12.1]} 36... Rh8 {[%clk 0:00:21.5]} 37. R3d2 {[%clk 0:00:11.9]} 37... Rc8
{[%clk 0:00:20.4]} 38. Rh1 {[%clk 0:00:10.5]} 38... e5 {[%clk 0:00:16.1]} 39. h5
{[%clk 0:00:10.5]} 39... gxh5+ {[%clk 0:00:16.6]} 40. Rxh5 {[%clk 0:00:10.8]}
40... d4 {[%clk 0:00:16.1]} 41. Rh7 {[%clk 0:00:10.6]} 41... Rf8 {[%clk
0:00:14.7]} 42. Kf5 {[%clk 0:00:08.6]} 42... Kd5 {[%clk 0:00:15.1]} 43. Rh4
{[%clk 0:00:06.1]} 43... Re8 {[%clk 0:00:13.1]} 44. Re4 {[%clk 0:00:05.7]} 44...
a4 {[%clk 0:00:12.1]} 45. cxd4 {[%clk 0:00:03.8]} 45... cxd4 {[%clk 0:00:12.1]}
46. Rdxd4+ {[%clk 0:00:04.3]} 46... exd4 {[%clk 0:00:12.4]} 47. Rxe8 {[%clk
0:00:04.4]} 47... d3 {[%clk 0:00:13]} 48. Re1 {[%clk 0:00:04]} 48... Kd4 {[%clk
0:00:13]} 49. g6 {[%clk 0:00:03.9]} 49... fxg6+ {[%clk 0:00:13.1]} 50. Kxg6
{[%clk 0:00:04.4]} 50... d2 {[%clk 0:00:13.7]} 51. Rh1 {[%clk 0:00:04.4]} 51...
Kd3 {[%clk 0:00:13.8]} 52. Kf5 {[%clk 0:00:02.5]} 52... Kc2 {[%clk 0:00:13.2]}
53. Ke6 {[%clk 0:00:02.1]} 53... Bf8 {[%clk 0:00:11.5]} 54. Rh2 {[%clk
0:00:01.1]} 54... Kc1 {[%clk 0:00:11.5]} 55. Rh1+ {[%clk 0:00:01.4]} 55... d1=Q
{[%clk 0:00:11.8]} 56. Rxd1+ {[%clk 0:00:01.9]} 56... Kxd1 {[%clk 0:00:12.2]}
57. Kd5 {[%clk 0:00:02]} 57... Kc2 {[%clk 0:00:12.3]} 58. Kc6 {[%clk 0:00:02.5]}
58... Kxb2 {[%clk 0:00:10.6]} 59. Kxb5 {[%clk 0:00:03]} 59... a3 {[%clk
0:00:10.3]} 60. Kc4 {[%clk 0:00:03.4]} 60... Kxa2 {[%clk 0:00:10.8]} 61. Kc3
{[%clk 0:00:03.8]} 61... Kb1 {[%clk 0:00:11.3]} 62. f7 {[%clk 0:00:02.8]} 62...
a2 {[%clk 0:00:12.2]} 63. Kd2 {[%clk 0:00:02.2]} 63... a1=Q {[%clk 0:00:12.6]}
0-1

[Event "Late-Titled-Tuesday-Blitz-April-30-2024"]
[Site "Chess.com"]
[Date "2024.04.30"]
[Round "7"]
[White "chessforthesun"]
[Black "LuciaMalanRamos"]
[Result "0-1"]
[WhiteElo "2602"]
[BlackElo "2126"]
[TimeControl "180+1"]
[EndTime "15:18:47 PDT"]
[Termination "LuciaMalanRamos won by checkmate"]

1. d4 {[%clk 0:03:00.9]} 1... d5 {[%clk 0:02:59.5]} 2. Nc3 {[%clk 0:03:01.4]}
2... Nf6 {[%clk 0:02:59.5]} 3. Bf4 {[%clk 0:03:01.9]} 3... a6 {[%clk 0:02:59.2]}
4. e3 {[%clk 0:03:01.3]} 4... e6 {[%clk 0:02:59.7]} 5. Nf3 {[%clk 0:03:01.5]}
5... c5 {[%clk 0:03:00.2]} 6. dxc5 {[%clk 0:03:02.4]} 6... Bxc5 {[%clk 0:03:00]}
7. Bd3 {[%clk 0:03:03.1]} 7... Bd6 {[%clk 0:02:59.1]} 8. Bg5 {[%clk 0:03:03.1]}
8... Be7 {[%clk 0:02:59.2]} 9. O-O {[%clk 0:03:02.9]} 9... h6 {[%clk 0:02:59.6]}
10. Bh4 {[%clk 0:03:03]} 10... Qb6 {[%clk 0:02:56.6]} 11. e4 {[%clk 0:02:40.6]}
11... Qxb2 {[%clk 0:02:29.4]} 12. Na4 {[%clk 0:02:40]} 12... Qb4 {[%clk
0:02:22.3]} 13. c3 {[%clk 0:02:39.7]} 13... Qa5 {[%clk 0:02:15.9]} 14. e5 {[%clk
0:02:33.3]} 14... Nfd7 {[%clk 0:02:11.2]} 15. Bxe7 {[%clk 0:02:34.2]} 15... Kxe7
{[%clk 0:02:11.5]} 16. c4 {[%clk 0:02:24.9]} 16... b5 {[%clk 0:02:04.7]} 17.
cxd5 {[%clk 0:02:02]} 17... Qxa4 {[%clk 0:01:57.9]} 18. Bc2 {[%clk 0:02:00.7]}
18... Qa5 {[%clk 0:01:46.7]} 19. dxe6 {[%clk 0:01:58.9]} 19... fxe6 {[%clk
0:01:43.6]} 20. Qd6+ {[%clk 0:01:56.7]} 20... Kf7 {[%clk 0:01:40.5]} 21. Bb3
{[%clk 0:01:27.8]} 21... Re8 {[%clk 0:01:18.9]} 22. Nd4 {[%clk 0:00:32.1]} 22...
Nf8 {[%clk 0:01:05.8]} 23. Rac1 {[%clk 0:00:30.3]} 23... Qd8 {[%clk 0:01:00.1]}
24. Rc7+ {[%clk 0:00:20]} 24... Kg8 {[%clk 0:00:55.6]} 25. Qxd8 {[%clk
0:00:11.5]} 25... Rxd8 {[%clk 0:00:56.5]} 26. Nc6 {[%clk 0:00:12.1]} 26... Nxc6
{[%clk 0:00:53.1]} 27. Rxc6 {[%clk 0:00:13]} 27... Bb7 {[%clk 0:00:28.1]} 28.
Rb6 {[%clk 0:00:11.1]} 28... Bd5 {[%clk 0:00:27.1]} 29. f4 {[%clk 0:00:10.9]}
29... Bxb3 {[%clk 0:00:27]} 30. axb3 {[%clk 0:00:11.8]} 30... Rd3 {[%clk
0:00:25.6]} 31. f5 {[%clk 0:00:06.8]} 31... exf5 {[%clk 0:00:20.1]} 32. Rxf5
{[%clk 0:00:07.7]} 32... Rxb3 {[%clk 0:00:17.8]} 33. e6 {[%clk 0:00:03.8]} 33...
Re8 {[%clk 0:00:16.1]} 34. Re5 {[%clk 0:00:04.2]} 34... Ng6 {[%clk 0:00:12.6]}
35. Re4 {[%clk 0:00:04]} 35... a5 {[%clk 0:00:11.7]} 36. h4 {[%clk 0:00:03.4]}
36... a4 {[%clk 0:00:12.1]} 37. h5 {[%clk 0:00:03.7]} 37... Ne7 {[%clk
0:00:12.2]} 38. Re5 {[%clk 0:00:03.9]} 38... a3 {[%clk 0:00:12.1]} 39. Rexb5
{[%clk 0:00:04.2]} 39... Rxb5 {[%clk 0:00:12.5]} 40. Rxb5 {[%clk 0:00:05.1]}
40... Nc8 {[%clk 0:00:11.7]} 41. Ra5 {[%clk 0:00:05.2]} 41... Rxe6 {[%clk
0:00:10.9]} 42. Rxa3 {[%clk 0:00:05.9]} 42... Nd6 {[%clk 0:00:11.4]} 43. Ra6
{[%clk 0:00:06.1]} 43... Rf6 {[%clk 0:00:11.2]} 44. Kh2 {[%clk 0:00:06.8]} 44...
Ne4 {[%clk 0:00:11.5]} 45. Ra8+ {[%clk 0:00:07.7]} 45... Kh7 {[%clk 0:00:11.3]}
46. g4 {[%clk 0:00:08.4]} 46... Ng5 {[%clk 0:00:11.7]} 47. Kg2 {[%clk
0:00:08.5]} 47... Re6 {[%clk 0:00:12.2]} 48. Ra5 {[%clk 0:00:08.9]} 48... Rd6
{[%clk 0:00:12.4]} 49. Ra2 {[%clk 0:00:08.7]} 49... Kg8 {[%clk 0:00:12.9]} 50.
Rb2 {[%clk 0:00:09.1]} 50... Kf7 {[%clk 0:00:13.3]} 51. Rb7+ {[%clk 0:00:09.8]}
51... Kf6 {[%clk 0:00:13.8]} 52. Rb5 {[%clk 0:00:10.4]} 52... Re6 {[%clk
0:00:14.1]} 53. Rf5+ {[%clk 0:00:10.4]} 53... Ke7 {[%clk 0:00:14]} 54. Ra5
{[%clk 0:00:11.3]} 54... Rd6 {[%clk 0:00:14.2]} 55. Ra6 {[%clk 0:00:11.7]} 55...
Rd7 {[%clk 0:00:14.6]} 56. Ra7 {[%clk 0:00:12.6]} 56... Rxa7 {[%clk 0:00:14.2]}
57. Kg3 {[%clk 0:00:13.1]} 57... Ra4 {[%clk 0:00:14.3]} 58. Kh4 {[%clk 0:00:14]}
58... Rxg4+ {[%clk 0:00:13.9]} 59. Kxg4 {[%clk 0:00:14.1]} 59... Kf6 {[%clk
0:00:14.8]} 60. Kh4 {[%clk 0:00:14.5]} 60... Ne6 {[%clk 0:00:15.4]} 61. Kg4
{[%clk 0:00:15.4]} 61... Nd4 {[%clk 0:00:15.7]} 62. Kh4 {[%clk 0:00:16.3]} 62...
Nc6 {[%clk 0:00:15.5]} 63. Kg4 {[%clk 0:00:17.2]} 63... g6 {[%clk 0:00:13.3]}
64. Kf4 {[%clk 0:00:18.1]} 64... g5+ {[%clk 0:00:13]} 65. Kg3 {[%clk 0:00:19]}
65... Nd4 {[%clk 0:00:13.3]} 66. Kg4 {[%clk 0:00:19.9]} 66... Ke5 {[%clk
0:00:13.5]} 67. Kg3 {[%clk 0:00:19.7]} 67... Kf5 {[%clk 0:00:14.4]} 68. Kh3
{[%clk 0:00:20.1]} 68... Ne6 {[%clk 0:00:15.3]} 69. Kg3 {[%clk 0:00:20.5]} 69...
Nf4 {[%clk 0:00:15.8]} 70. Kf3 {[%clk 0:00:20.7]} 70... Nxh5 {[%clk 0:00:16.7]}
71. Kg2 {[%clk 0:00:20.7]} 71... Nf6 {[%clk 0:00:17.6]} 72. Kh3 {[%clk
0:00:21.6]} 72... h5 {[%clk 0:00:18.5]} 73. Kg3 {[%clk 0:00:22.3]} 73... g4
{[%clk 0:00:19.4]} 74. Kh4 {[%clk 0:00:22.8]} 74... Kg6 {[%clk 0:00:19.8]} 75.
Kg3 {[%clk 0:00:23.7]} 75... Kg5 {[%clk 0:00:20.2]} 76. Kg2 {[%clk 0:00:24.2]}
76... h4 {[%clk 0:00:21.1]} 77. Kf2 {[%clk 0:00:24.7]} 77... g3+ {[%clk
0:00:18.9]} 78. Kg2 {[%clk 0:00:24.8]} 78... Kg4 {[%clk 0:00:19.1]} 79. Kg1
{[%clk 0:00:25.4]} 79... h3 {[%clk 0:00:17.7]} 80. Kh1 {[%clk 0:00:25.8]} 80...
Kf3 {[%clk 0:00:17.9]} 81. Kg1 {[%clk 0:00:26.2]} 81... g2 {[%clk 0:00:15.7]}
82. Kh2 {[%clk 0:00:27.1]} 82... Kf2 {[%clk 0:00:15.6]} 83. Kxh3 {[%clk
0:00:28]} 83... g1=Q {[%clk 0:00:16.1]} 84. Kh4 {[%clk 0:00:28.9]} 84... Kf3
{[%clk 0:00:14.5]} 85. Kh3 {[%clk 0:00:28.4]} 85... Qg3# {[%clk 0:00:14.8]} 0-1

[Event "Late-Titled-Tuesday-Blitz-April-30-2024"]
[Site "Chess.com"]
[Date "2024.04.30"]
[Round "7"]
[White "NLLO777"]
[Black "Individoom"]
[Result "1-0"]
[WhiteElo "2574"]
[BlackElo "2767"]
[TimeControl "180+1"]
[EndTime "15:18:59 PDT"]
[Termination "NLLO777 won by checkmate"]

1. d4 {[%clk 0:03:00.9]} 1... Nf6 {[%clk 0:02:48.2]} 2. Nf3 {[%clk 0:02:59.7]}
2... g6 {[%clk 0:02:48.1]} 3. g3 {[%clk 0:02:59.6]} 3... Bg7 {[%clk 0:02:48.2]}
4. Bg2 {[%clk 0:03:00.5]} 4... O-O {[%clk 0:02:48.8]} 5. O-O {[%clk 0:03:01.4]}
5... d6 {[%clk 0:02:49.3]} 6. c4 {[%clk 0:03:01.9]} 6... Nbd7 {[%clk 0:02:49.5]}
7. Nc3 {[%clk 0:03:02.5]} 7... e5 {[%clk 0:02:49.9]} 8. e3 {[%clk 0:03:03.2]}
8... Re8 {[%clk 0:02:44.9]} 9. Rb1 {[%clk 0:02:58.4]} 9... Qe7 {[%clk
0:02:42.4]} 10. b4 {[%clk 0:02:56.8]} 10... Nf8 {[%clk 0:02:42.4]} 11. a4 {[%clk
0:02:56]} 11... e4 {[%clk 0:02:40.9]} 12. Nd2 {[%clk 0:02:56]} 12... Bf5 {[%clk
0:02:40.5]} 13. b5 {[%clk 0:02:52.3]} 13... h5 {[%clk 0:02:39.2]} 14. Ba3 {[%clk
0:02:50.8]} 14... N8h7 {[%clk 0:02:37.1]} 15. Qb3 {[%clk 0:02:46.5]} 15... h4
{[%clk 0:02:32.4]} 16. c5 {[%clk 0:02:44.7]} 16... hxg3 {[%clk 0:02:31.7]} 17.
hxg3 {[%clk 0:02:40.6]} 17... Ng5 {[%clk 0:02:23.4]} 18. cxd6 {[%clk 0:02:40.2]}
18... cxd6 {[%clk 0:02:23.3]} 19. Nd5 {[%clk 0:02:40.7]} 19... Nxd5 {[%clk
0:02:20.2]} 20. Qxd5 {[%clk 0:02:41.6]} 20... Rad8 {[%clk 0:02:18.7]} 21. b6
{[%clk 0:02:25.1]} 21... a6 {[%clk 0:02:14.6]} 22. Rfc1 {[%clk 0:02:23.7]} 22...
Be6 {[%clk 0:01:57.3]} 23. Qa5 {[%clk 0:02:19.4]} 23... Qf6 {[%clk 0:01:57.1]}
24. Rc7 {[%clk 0:02:08.6]} 24... Bc8 {[%clk 0:01:28.3]} 25. Rbc1 {[%clk
0:01:58.6]} 25... Bf8 {[%clk 0:01:25.8]} 26. Qd5 {[%clk 0:01:41.8]} 26... Qf5
{[%clk 0:00:39.6]} 27. Qxf5 {[%clk 0:01:30]} 27... gxf5 {[%clk 0:00:40.5]} 28.
Nb3 {[%clk 0:01:13.9]} 28... Ne6 {[%clk 0:00:36.2]} 29. R7c3 {[%clk 0:01:11.9]}
29... d5 {[%clk 0:00:34.9]} 30. Bxf8 {[%clk 0:01:10.7]} 30... Kxf8 {[%clk
0:00:34.7]} 31. Nc5 {[%clk 0:01:02.9]} 31... Nxc5 {[%clk 0:00:34]} 32. Rxc5
{[%clk 0:01:01.5]} 32... Bd7 {[%clk 0:00:34]} 33. a5 {[%clk 0:01:00.2]} 33...
Bc6 {[%clk 0:00:30]} 34. Bh3 {[%clk 0:00:57.7]} 34... Rd6 {[%clk 0:00:29.5]} 35.
Bxf5 {[%clk 0:00:55.2]} 35... Kg7 {[%clk 0:00:29.7]} 36. Bh3 {[%clk 0:00:53.4]}
36... Rh8 {[%clk 0:00:28.3]} 37. Bg2 {[%clk 0:00:40.6]} 37... Rhh6 {[%clk
0:00:27.3]} 38. Bf1 {[%clk 0:00:31]} 38... Rdf6 {[%clk 0:00:27]} 39. Be2 {[%clk
0:00:28.4]} 39... Rfg6 {[%clk 0:00:24.4]} 40. Kg2 {[%clk 0:00:26.9]} 40... Rf6
{[%clk 0:00:19.2]} 41. R5c2 {[%clk 0:00:22.3]} 41... Rfg6 {[%clk 0:00:18]} 42.
Rh1 {[%clk 0:00:22.1]} 42... Rxh1 {[%clk 0:00:17.1]} 43. Kxh1 {[%clk 0:00:23]}
43... Rh6+ {[%clk 0:00:17.6]} 44. Kg2 {[%clk 0:00:23.3]} 44... Kf8 {[%clk
0:00:17.9]} 45. Ra2 {[%clk 0:00:19.2]} 45... Ke7 {[%clk 0:00:17.5]} 46. Bd1
{[%clk 0:00:15.4]} 46... Kd6 {[%clk 0:00:16.8]} 47. Ba4 {[%clk 0:00:16]} 47...
Bxa4 {[%clk 0:00:11.3]} 48. Rxa4 {[%clk 0:00:16.9]} 48... Kc6 {[%clk 0:00:12.1]}
49. Ra1 {[%clk 0:00:15.1]} 49... Kb5 {[%clk 0:00:12.4]} 50. f3 {[%clk
0:00:12.8]} 50... exf3+ {[%clk 0:00:11.8]} 51. Kxf3 {[%clk 0:00:13.7]} 51... Rc6
{[%clk 0:00:11.1]} 52. Kf4 {[%clk 0:00:13]} 52... Rc3 {[%clk 0:00:10.7]} 53. Ke5
{[%clk 0:00:11.4]} 53... Rxe3+ {[%clk 0:00:10.6]} 54. Kxd5 {[%clk 0:00:12.1]}
54... Rxg3 {[%clk 0:00:10.9]} 55. Kd6 {[%clk 0:00:12.4]} 55... Rc3 {[%clk
0:00:10.2]} 56. d5 {[%clk 0:00:11.9]} 56... f5 {[%clk 0:00:10.5]} 57. Ke5 {[%clk
0:00:12.1]} 57... Rd3 {[%clk 0:00:09.6]} 58. d6 {[%clk 0:00:10]} 58... f4 {[%clk
0:00:09.7]} 59. Ke6 {[%clk 0:00:10.6]} 59... f3 {[%clk 0:00:09.8]} 60. d7 {[%clk
0:00:10.9]} 60... f2 {[%clk 0:00:08.8]} 61. Ke7 {[%clk 0:00:11.5]} 61... f1=Q
{[%clk 0:00:08.3]} 62. Rxf1 {[%clk 0:00:11]} 62... Kxa5 {[%clk 0:00:09.2]} 63.
Rb1 {[%clk 0:00:10.9]} 63... Re3+ {[%clk 0:00:08.2]} 64. Kd6 {[%clk 0:00:11.1]}
64... Rd3+ {[%clk 0:00:07.5]} 65. Kc7 {[%clk 0:00:11.6]} 65... Rc3+ {[%clk
0:00:06.7]} 66. Kxb7 {[%clk 0:00:11.5]} 66... Rd3 {[%clk 0:00:07]} 67. Kc8
{[%clk 0:00:09.3]} 67... Rc3+ {[%clk 0:00:07.3]} 68. Kd8 {[%clk 0:00:08]} 68...
Rc1 {[%clk 0:00:05.3]} 69. Rxc1 {[%clk 0:00:07.8]} 69... Kxb6 {[%clk 0:00:05]}
70. Kc8 {[%clk 0:00:08.4]} 70... Ka7 {[%clk 0:00:05.2]} 71. d8=Q {[%clk
0:00:09.3]} 71... a5 {[%clk 0:00:06.1]} 72. Rc6 {[%clk 0:00:08.7]} 72... a4
{[%clk 0:00:07]} 73. Qb6+ {[%clk 0:00:09.4]} 73... Ka8 {[%clk 0:00:06.7]} 74.
Qb7# {[%clk 0:00:10.3]} 1-0

[Event "Late-Titled-Tuesday-Blitz-April-30-2024"]
[Site "Chess.com"]
[Date "2024.04.30"]
[Round "7"]
[White "Andrii_Prydun"]
[Black "yaguigor"]
[Result "1/2-1/2"]
[WhiteElo "2382"]
[BlackElo "2554"]
[TimeControl "180+1"]
[EndTime "15:19:13 PDT"]
[Termination "Game drawn by repetition"]

1. e4 {[%clk 0:03:00.9]} 1... Nc6 {[%clk 0:02:57.1]} 2. d4 {[%clk 0:02:54.2]}
2... d5 {[%clk 0:02:54.4]} 3. e5 {[%clk 0:02:54.3]} 3... Bf5 {[%clk 0:02:53.4]}
4. Be3 {[%clk 0:02:47.3]} 4... e6 {[%clk 0:02:52.9]} 5. Bd3 {[%clk 0:02:47.4]}
5... Bxd3 {[%clk 0:02:51.3]} 6. cxd3 {[%clk 0:02:47.7]} 6... f6 {[%clk 0:02:47]}
7. Nf3 {[%clk 0:02:43.9]} 7... Nge7 {[%clk 0:02:40.9]} 8. exf6 {[%clk 0:02:41]}
8... gxf6 {[%clk 0:02:39.9]} 9. Nh4 {[%clk 0:02:41.9]} 9... Ng6 {[%clk
0:02:24.5]} 10. Qh5 {[%clk 0:02:37]} 10... Bb4+ {[%clk 0:02:18.4]} 11. Nc3
{[%clk 0:02:27.9]} 11... Ne7 {[%clk 0:02:17.7]} 12. O-O {[%clk 0:02:19.5]} 12...
Qd7 {[%clk 0:02:07.1]} 13. Nxg6 {[%clk 0:01:26.7]} 13... Nxg6 {[%clk 0:02:04.7]}
14. f4 {[%clk 0:01:17.9]} 14... f5 {[%clk 0:01:58]} 15. Ne2 {[%clk 0:01:07.4]}
15... O-O-O {[%clk 0:01:52.3]} 16. Kh1 {[%clk 0:01:07.2]} 16... Rdg8 {[%clk
0:01:43.5]} 17. Rfd1 {[%clk 0:00:54.7]} 17... Qe8 {[%clk 0:01:35.3]} 18. Rac1
{[%clk 0:00:50]} 18... Bd6 {[%clk 0:01:33.9]} 19. g3 {[%clk 0:00:41.7]} 19...
Ne7 {[%clk 0:01:25.5]} 20. Qxe8+ {[%clk 0:00:30.8]} 20... Rxe8 {[%clk
0:01:24.6]} 21. Ng1 {[%clk 0:00:25.6]} 21... h5 {[%clk 0:01:23.3]} 22. h4 {[%clk
0:00:25.4]} 22... Rhg8 {[%clk 0:01:21.3]} 23. Bf2 {[%clk 0:00:25.3]} 23... Nc6
{[%clk 0:01:17]} 24. Nf3 {[%clk 0:00:24.4]} 24... Nd8 {[%clk 0:01:14.1]} 25. Ng5
{[%clk 0:00:22.3]} 25... Kd7 {[%clk 0:01:09]} 26. Kg2 {[%clk 0:00:21.8]} 26...
Re7 {[%clk 0:01:07.3]} 27. Kf3 {[%clk 0:00:21.6]} 27... Nf7 {[%clk 0:01:07.4]}
28. Rc2 {[%clk 0:00:19.9]} 28... Nh6 {[%clk 0:01:06.7]} 29. Rdc1 {[%clk
0:00:18.3]} 29... Ng4 {[%clk 0:01:06.3]} 30. Be1 {[%clk 0:00:18.2]} 30... Reg7
{[%clk 0:00:59.1]} 31. b4 {[%clk 0:00:17.9]} 31... c6 {[%clk 0:00:58.2]} 32. a4
{[%clk 0:00:18.1]} 32... a6 {[%clk 0:00:55.5]} 33. Rb2 {[%clk 0:00:17]} 33... b5
{[%clk 0:00:38.1]} 34. a5 {[%clk 0:00:15.9]} 34... Be7 {[%clk 0:00:34]} 35. Rbc2
{[%clk 0:00:15.6]} 35... Rc8 {[%clk 0:00:33.7]} 36. Re2 {[%clk 0:00:15.8]} 36...
Rg6 {[%clk 0:00:31.4]} 37. Bc3 {[%clk 0:00:16.5]} 37... Bd6 {[%clk 0:00:30.8]}
38. Rce1 {[%clk 0:00:16.5]} 38... Rf8 {[%clk 0:00:29.3]} 39. Rxe6 {[%clk
0:00:12]} 39... Rxe6 {[%clk 0:00:25.4]} 40. Rxe6 {[%clk 0:00:12.9]} 40... Rf6
{[%clk 0:00:24.1]} 41. Re2 {[%clk 0:00:11.2]} 41... Nh6 {[%clk 0:00:20.9]} 42.
Re1 {[%clk 0:00:09.5]} 42... Ng8 {[%clk 0:00:20.4]} 43. Kf2 {[%clk 0:00:05.4]}
43... Ne7 {[%clk 0:00:20.2]} 44. Nf3 {[%clk 0:00:05.5]} 44... Re6 {[%clk
0:00:16.5]} 45. Ne5+ {[%clk 0:00:04.7]} 45... Bxe5 {[%clk 0:00:16.9]} 46. Rxe5
{[%clk 0:00:03.4]} 46... Ng6 {[%clk 0:00:13.8]} 47. Rxe6 {[%clk 0:00:02.6]}
47... Kxe6 {[%clk 0:00:14.7]} 48. Bd2 {[%clk 0:00:02.5]} 48... Nf8 {[%clk
0:00:14]} 49. Bc3 {[%clk 0:00:02.3]} 49... Nd7 {[%clk 0:00:13.8]} 50. Kf3 {[%clk
0:00:02.5]} 50... Nf6 {[%clk 0:00:12.8]} 51. Bd2 {[%clk 0:00:01.8]} 51... Ng4
{[%clk 0:00:13.7]} 52. Bc3 {[%clk 0:00:01.9]} 52... Nh2+ {[%clk 0:00:13.7]} 53.
Kf2 {[%clk 0:00:02.3]} 53... Ng4+ {[%clk 0:00:14.6]} 54. Kf3 {[%clk 0:00:02.7]}
54... c5 {[%clk 0:00:13.8]} 55. dxc5 {[%clk 0:00:02.4]} 55... Kd7 {[%clk
0:00:13.4]} 56. Bd4 {[%clk 0:00:02.5]} 56... Kc6 {[%clk 0:00:13.4]} 57. Kg2
{[%clk 0:00:02.6]} 57... Nh6 {[%clk 0:00:11.8]} 58. Kf3 {[%clk 0:00:02.9]} 58...
Nf7 {[%clk 0:00:11.3]} 59. Ke3 {[%clk 0:00:03.3]} 59... Nd8 {[%clk 0:00:11.8]}
60. Kd2 {[%clk 0:00:03.3]} 60... Ne6 {[%clk 0:00:12.3]} 61. Kc3 {[%clk
0:00:03.8]} 61... Kd7 {[%clk 0:00:11.5]} 62. Be5 {[%clk 0:00:03.1]} 62... Kc6
{[%clk 0:00:11.7]} 63. d4 {[%clk 0:00:02.8]} 63... Kd7 {[%clk 0:00:11.3]} 64.
Kd3 {[%clk 0:00:03.1]} 64... Nd8 {[%clk 0:00:10.9]} 65. Kc3 {[%clk 0:00:02.7]}
65... Nc6 {[%clk 0:00:10.9]} 66. Bf6 {[%clk 0:00:02.7]} 66... Ke6 {[%clk
0:00:10.9]} 67. Bg5 {[%clk 0:00:03]} 67... Na7 {[%clk 0:00:09]} 68. Kd3 {[%clk
0:00:03]} 68... Nc6 {[%clk 0:00:09.5]} 69. Kc3 {[%clk 0:00:03.6]} 69... Kd7
{[%clk 0:00:09.9]} 70. Bf6 {[%clk 0:00:02.4]} 70... Nb8 {[%clk 0:00:09.5]} 71.
Bg5 {[%clk 0:00:02.6]} 71... Nc6 {[%clk 0:00:09.7]} 72. Bf6 {[%clk 0:00:03]}
1/2-1/2